[Event "Hull 4NCL GM Norm Tournament"]
[Site "Canham Turner Centre"]
[Date "2022.10.15"]
[Round "6.2"]
[White "Harvey, Marcus R"]
[Black "Royal, Shreyas"]
[Result "1-0"]
[TimeControl "1hr30 + 30sec inc"]
[WhiteElo "2463"]
[BlackElo "2431"]

1. c4 {[%clk 01:30:32]} {[%emt 00:00:27]} Nf6 {[%clk 01:30:53]} {[%emt
00:00:07]} 2. Nc3 {[%clk 01:30:58]} {[%emt 00:00:05]} e5 {[%clk 01:31:18]}
{[%emt 00:00:05]} 3. Nf3 {[%clk 01:30:32]} {[%emt 00:00:55]} Nc6 {[%clk
01:31:44]} {[%emt 00:00:05]} 4. e3 {[%clk 01:30:49]} {[%emt 00:00:13]} Bb4
{[%clk 01:32:00]} {[%emt 00:00:14]} 5. Qb3 {[%clk 01:29:02]} {[%emt 00:02:18]}
Bxc3 {[%clk 01:29:17]} {[%emt 00:03:13]} 6. Qxc3 {[%clk 01:28:18]} {[%emt
00:01:14]} Qe7 {[%clk 01:29:20]} {[%emt 00:00:27]} 7. d4 {[%clk 01:23:55]}
{[%emt 00:04:53]} Ne4 {[%clk 01:29:09]} {[%emt 00:00:41]} 8. Qd3 {[%clk
01:24:19]} {[%emt 00:00:06]} exd4 {[%clk 01:29:34]} {[%emt 00:00:04]} 9. Nxd4
{[%clk 01:24:44]} {[%emt 00:00:05]} Nc5 {[%clk 01:29:59]} {[%emt 00:00:05]} 10.
Qd1 {[%clk 01:19:42]} {[%emt 00:05:32]} Nxd4 {[%clk 01:29:08]} {[%emt
00:01:22]} 11. Qxd4 {[%clk 01:20:06]} {[%emt 00:00:06]} O-O {[%clk 01:29:29]}
{[%emt 00:00:08]} 12. Be2 {[%clk 01:17:57]} {[%emt 00:02:39]} b6 {[%clk
01:24:33]} {[%emt 00:05:27]} 13. Bf3 {[%clk 01:14:19]} {[%emt 00:04:07]} Bb7
{[%clk 01:24:21]} {[%emt 00:00:42]} 14. Bxb7 {[%clk 01:10:13]} {[%emt
00:04:36]} Nxb7 {[%clk 01:24:43]} {[%emt 00:00:08]} 15. Bd2 {[%clk 01:09:41]}
{[%emt 00:01:01]} Nc5 {[%clk 01:22:37]} {[%emt 00:02:37]} 16. Bc3 {[%clk
01:08:18]} {[%emt 00:01:54]} Ne6 {[%clk 01:22:26]} {[%emt 00:00:41]} 17. Qd5
{[%clk 01:06:41]} {[%emt 00:02:06]} Nf4 {[%clk 01:17:00]} {[%emt 00:05:57]} 18.
Qd4 {[%clk 01:01:59]} {[%emt 00:05:11]} Ne6 {[%clk 01:16:45]} {[%emt 00:00:45]}
19. Qd2 {[%clk 01:01:35]} {[%emt 00:00:54]} a5 {[%clk 01:09:47]} {[%emt
00:07:28]} 20. Rd1 {[%clk 01:01:26]} {[%emt 00:00:39]} d6 {[%clk 01:08:26]}
{[%emt 00:01:51]} 21. O-O {[%clk 01:00:25]} {[%emt 00:01:31]} Rae8 {[%clk
01:08:46]} {[%emt 00:00:11]} 22. e4 {[%clk 00:57:57]} {[%emt 00:02:58]} Qh4
{[%clk 00:52:47]} {[%emt 00:16:28]} 23. f3 {[%clk 00:55:41]} {[%emt 00:02:46]}
Nc5 {[%clk 00:53:11]} {[%emt 00:00:07]} 24. Bd4 {[%clk 00:54:07]} {[%emt
00:02:04]} Qh5 {[%clk 00:48:36]} {[%emt 00:05:05]} 25. Qf2 {[%clk 00:47:42]}
{[%emt 00:06:55]} Re6 {[%clk 00:43:53]} {[%emt 00:05:12]} 26. e5 {[%clk
00:44:18]} {[%emt 00:03:54]} dxe5 {[%clk 00:40:49]} {[%emt 00:03:35]} 27. Bxc5
{[%clk 00:44:34]} {[%emt 00:00:14]} bxc5 {[%clk 00:41:15]} {[%emt 00:00:05]} 28.
Qxc5 {[%clk 00:42:53]} {[%emt 00:02:11]} Rh6 {[%clk 00:40:52]} {[%emt
00:00:52]} 29. h3 {[%clk 00:42:56]} {[%emt 00:00:27]} Qg5 {[%clk 00:37:33]}
{[%emt 00:03:49]} 30. f4 {[%clk 00:39:07]} {[%emt 00:04:19]} Qg6 {[%clk
00:37:06]} {[%emt 00:00:57]} 31. Qxc7 {[%clk 00:34:14]} {[%emt 00:05:24]} exf4
{[%clk 00:36:11]} {[%emt 00:01:25]} 32. b3 {[%clk 00:26:02]} {[%emt 00:08:42]}
Qe6 {[%clk 00:22:26]} {[%emt 00:14:14]} 33. Qxf4 {[%clk 00:25:45]} {[%emt
00:00:47]} Rf6 {[%clk 00:21:56]} {[%emt 00:01:00]} 34. Qd4 {[%clk 00:25:41]}
{[%emt 00:00:33]} Rg6 {[%clk 00:22:20]} {[%emt 00:00:07]} 35. Rf3 {[%clk
00:24:30]} {[%emt 00:01:41]} Qe2 {[%clk 00:21:43]} {[%emt 00:01:06]} 36. Rf2
{[%clk 00:24:59]} {[%emt 00:00:01]} Qe6 {[%clk 00:22:08]} {[%emt 00:00:06]} 37.
Qd5 {[%clk 00:24:28]} {[%emt 00:01:01]} Qb6 {[%clk 00:20:45]} {[%emt 00:01:52]}
38. c5 {[%clk 00:24:04]} {[%emt 00:00:54]} Qc7 {[%clk 00:21:12]} {[%emt
00:00:04]} 39. a3 {[%clk 00:23:54]} {[%emt 00:00:39]} Re6 {[%clk 00:18:31]}
{[%emt 00:03:11]} 40. b4 {[%clk 00:23:51]} {[%emt 00:00:33]} Rfe8 {[%clk
00:18:54]} {[%emt 00:00:07]} 41. Rdf1 {[%clk 00:22:58]} {[%emt 00:01:22]} R6e7
{[%clk 00:18:17]} {[%emt 00:01:08]} 42. Qc4 {[%clk 00:20:33]} {[%emt 00:02:55]}
Rc8 {[%clk 00:17:50]} {[%emt 00:00:58]} 43. Rf4 {[%clk 00:19:49]} {[%emt
00:01:14]} h6 {[%clk 00:17:58]} {[%emt 00:00:22]} 44. Rf5 {[%clk 00:19:26]}
{[%emt 00:00:53]} g6 {[%clk 00:17:16]} {[%emt 00:01:12]} 45. Rf6 {[%clk
00:19:31]} {[%emt 00:00:24]} Kg7 {[%clk 00:17:33]} {[%emt 00:00:13]} 46. Qd4
{[%clk 00:19:13]} {[%emt 00:00:49]} Kg8 {[%clk 00:17:52]} {[%emt 00:00:11]} 47.
Qd5 {[%clk 00:18:04]} {[%emt 00:01:39]} Kg7 {[%clk 00:18:11]} {[%emt 00:00:11]}
48. Kh1 {[%clk 00:17:35]} {[%emt 00:00:59]} axb4 {[%clk 00:17:31]} {[%emt
00:01:10]} 49. axb4 {[%clk 00:18:03]} {[%emt 00:00:02]} Rb8 {[%clk 00:16:56]}
{[%emt 00:01:05]} 50. Rxf7+ {[%clk 00:17:17]} {[%emt 00:01:16]} 1-0

[Event "Hull 4NCL GM Norm Tournament"]
[Site "Canham Turner Centre"]
[Date "2022.10.15"]
[Round "6.3"]
[White "Willow, Jonah B"]
[Black "Burg, Twan"]
[Result "0-1"]
[TimeControl "1hr30 + 30sec inc"]
[WhiteElo "2395"]
[BlackElo "2511"]

1. e4 {[%clk 01:30:47]} {[%emt 00:00:13]} c5 {[%clk 01:30:57]} {[%emt
00:00:04]} 2. Nf3 {[%clk 01:30:49]} {[%emt 00:00:27]} d6 {[%clk 01:31:22]}
{[%emt 00:00:04]} 3. d4 {[%clk 01:30:52]} {[%emt 00:00:28]} cxd4 {[%clk
01:31:47]} {[%emt 00:00:05]} 4. Nxd4 {[%clk 01:31:17]} {[%emt 00:00:04]} Nf6
{[%clk 01:32:12]} {[%emt 00:00:05]} 5. Nc3 {[%clk 01:31:35]} {[%emt 00:00:12]}
a6 {[%clk 01:32:37]} {[%emt 00:00:05]} 6. h3 {[%clk 01:31:37]} {[%emt
00:00:28]} e5 {[%clk 01:32:50]} {[%emt 00:00:18]} 7. Nb3 {[%clk 01:31:57]}
{[%emt 00:00:09]} h5 {[%clk 01:30:28]} {[%emt 00:02:51]} 8. Be3 {[%clk
01:31:12]} {[%emt 00:01:16]} Nbd7 {[%clk 01:28:35]} {[%emt 00:02:24]} 9. f4
{[%clk 01:29:41]} {[%emt 00:02:00]} b5 {[%clk 01:26:05]} {[%emt 00:03:01]} 10.
Qf3 {[%clk 01:24:52]} {[%emt 00:05:19]} Bb7 {[%clk 01:25:39]} {[%emt 00:00:55]}
11. a4 {[%clk 01:23:22]} {[%emt 00:02:01]} b4 {[%clk 01:23:41]} {[%emt
00:02:28]} 12. Nd5 {[%clk 01:23:37]} {[%emt 00:00:15]} Nxd5 {[%clk 01:20:23]}
{[%emt 00:03:49]} 13. exd5 {[%clk 01:24:05]} {[%emt 00:00:02]} Nf6 {[%clk
01:20:31]} {[%emt 00:00:22]} 14. fxe5 {[%clk 00:59:47]} {[%emt 00:24:47]} dxe5
{[%clk 01:17:41]} {[%emt 00:03:20]} 15. O-O-O {[%clk 00:59:53]} {[%emt
00:00:24]} Bxd5 {[%clk 01:15:44]} {[%emt 00:02:27]} 16. Qe2 {[%clk 00:40:36]}
{[%emt 00:19:47]} Qc7 {[%clk 01:09:49]} {[%emt 00:06:25]} 17. Kb1 {[%clk
00:38:55]} {[%emt 00:02:11]} Be7 {[%clk 01:05:12]} {[%emt 00:05:08]} 18. Bg5
{[%clk 00:38:07]} {[%emt 00:01:17]} Bb7 {[%clk 01:04:16]} {[%emt 00:01:26]} 19.
Rg1 {[%clk 00:30:00]} {[%emt 00:08:36]} Rc8 {[%clk 01:01:37]} {[%emt 00:03:08]}
20. g4 {[%clk 00:28:05]} {[%emt 00:02:26]} hxg4 {[%clk 01:00:46]} {[%emt
00:01:22]} 21. hxg4 {[%clk 00:28:28]} {[%emt 00:00:06]} Ne4 {[%clk 00:57:53]}
{[%emt 00:03:23]} 22. Bxe7 {[%clk 00:27:44]} {[%emt 00:01:14]} Kxe7 {[%clk
00:58:13]} {[%emt 00:00:09]} 23. Rc1 {[%clk 00:23:37]} {[%emt 00:04:37]} Nc5
{[%clk 00:51:51]} {[%emt 00:06:52]} 24. Bg2 {[%clk 00:17:15]} {[%emt 00:06:52]}
Rh2 {[%clk 00:51:00]} {[%emt 00:01:22]} 25. Nd4 {[%clk 00:17:25]} {[%emt
00:00:20]} Bxg2 {[%clk 00:43:59]} {[%emt 00:07:31]} 26. Rxg2 {[%clk 00:16:36]}
{[%emt 00:01:19]} Rxg2 {[%clk 00:43:07]} {[%emt 00:01:22]} 27. Nf5+ {[%clk
00:17:05]} {[%emt 00:00:01]} Kf8 {[%clk 00:41:34]} {[%emt 00:02:03]} 28. Rh1
{[%clk 00:15:51]} {[%emt 00:01:43]} Rg1+ {[%clk 00:41:49]} {[%emt 00:00:15]} 29.
Rxg1 {[%clk 00:16:20]} {[%emt 00:00:02]} g6 {[%clk 00:42:14]} {[%emt 00:00:05]}
30. Ne3 {[%clk 00:15:09]} {[%emt 00:01:41]} e4 {[%clk 00:38:57]} {[%emt
00:03:47]} 31. Rh1 {[%clk 00:13:52]} {[%emt 00:01:47]} Qe5 {[%clk 00:32:36]}
{[%emt 00:06:51]} 32. Qd2 {[%clk 00:06:21]} {[%emt 00:08:01]} b3 {[%clk
00:31:06]} {[%emt 00:01:59]} 33. Nc4 {[%clk 00:04:45]} {[%emt 00:02:06]} bxc2+
{[%clk 00:30:23]} {[%emt 00:01:13]} 34. Qxc2 {[%clk 00:03:38]} {[%emt
00:01:38]} Qd4 {[%clk 00:28:27]} {[%emt 00:02:25]} 35. Nb6 {[%clk 00:01:52]}
{[%emt 00:02:16]} Rc6 {[%clk 00:25:13]} {[%emt 00:03:44]} 36. a5 {[%clk
00:01:41]} {[%emt 00:00:41]} Qd3 {[%clk 00:25:10]} {[%emt 00:00:34]} 37. Qxd3
{[%clk 00:00:34]} {[%emt 00:01:37]} Nxd3 {[%clk 00:25:17]} {[%emt 00:00:22]} 38.
Nd5 {[%clk 00:00:36]} {[%emt 00:00:29]} Kg7 {[%clk 00:23:30]} {[%emt 00:02:17]}
39. g5 {[%clk 00:00:33]} {[%emt 00:00:33]} Rc5 {[%clk 00:23:04]} {[%emt
00:00:56]} 40. Nf6 {[%clk 00:00:47]} {[%emt 00:00:16]} Rxg5 {[%clk 00:23:03]}
{[%emt 00:00:31]} 41. Nxe4 {[%clk 00:01:05]} {[%emt 00:00:11]} Rxa5 {[%clk
00:22:34]} {[%emt 00:00:59]} 0-1

[Event "Hull 4NCL GM Norm Tournament"]
[Site "Canham Turner Centre"]
[Date "2022.10.15"]
[Round "6.4"]
[White "Wadsworth, Matthew J"]
[Black "Czopor, Maciej"]
[Result "1-0"]
[TimeControl "1hr30 + 30sec inc"]
[WhiteElo "2467"]
[BlackElo "2424"]

1. Nf3 {[%clk 01:30:56]} {[%emt 00:00:03]} Nf6 {[%clk 01:30:53]} {[%emt
00:00:09]} 2. c4 {[%clk 01:31:13]} {[%emt 00:00:12]} e6 {[%clk 01:31:19]}
{[%emt 00:00:04]} 3. g3 {[%clk 01:31:31]} {[%emt 00:00:12]} d5 {[%clk
01:31:45]} {[%emt 00:00:04]} 4. Bg2 {[%clk 01:31:47]} {[%emt 00:00:14]} d4
{[%clk 01:32:06]} {[%emt 00:00:09]} 5. d3 {[%clk 01:31:41]} {[%emt 00:00:36]}
Bb4+ {[%clk 01:32:31]} {[%emt 00:00:05]} 6. Bd2 {[%clk 01:28:56]} {[%emt
00:03:15]} a5 {[%clk 01:32:48]} {[%emt 00:00:13]} 7. O-O {[%clk 01:25:21]}
{[%emt 00:04:05]} O-O {[%clk 01:33:11]} {[%emt 00:00:06]} 8. e3 {[%clk
01:16:46]} {[%emt 00:09:06]} Nc6 {[%clk 01:33:14]} {[%emt 00:00:27]} 9. exd4
{[%clk 01:09:52]} {[%emt 00:07:24]} Nxd4 {[%clk 01:33:28]} {[%emt 00:00:15]} 10.
Nc3 {[%clk 01:07:49]} {[%emt 00:02:33]} Nxf3+ {[%clk 01:20:53]} {[%emt
00:13:05]} 11. Qxf3 {[%clk 01:07:55]} {[%emt 00:00:24]} e5 {[%clk 01:21:02]}
{[%emt 00:00:21]} 12. Bg5 {[%clk 00:58:24]} {[%emt 00:10:02]} Bxc3 {[%clk
01:20:16]} {[%emt 00:01:16]} 13. bxc3 {[%clk 00:58:19]} {[%emt 00:00:35]} Ra6
{[%clk 01:20:37]} {[%emt 00:00:09]} 14. Rfe1 {[%clk 00:54:05]} {[%emt
00:04:44]} Re8 {[%clk 01:14:12]} {[%emt 00:06:55]} 15. d4 {[%clk 00:50:33]}
{[%emt 00:04:02]} exd4 {[%clk 01:10:56]} {[%emt 00:03:45]} 16. cxd4 {[%clk
00:49:26]} {[%emt 00:01:37]} h6 {[%clk 01:08:57]} {[%emt 00:02:29]} 17. Rxe8+
{[%clk 00:46:37]} {[%emt 00:03:19]} Qxe8 {[%clk 01:09:20]} {[%emt 00:00:08]} 18.
Bf4 {[%clk 00:47:03]} {[%emt 00:00:04]} Qd8 {[%clk 00:56:25]} {[%emt 00:13:25]}
19. d5 {[%clk 00:42:36]} {[%emt 00:04:57]} Bg4 {[%clk 00:52:51]} {[%emt
00:04:04]} 20. Qe3 {[%clk 00:38:23]} {[%emt 00:04:42]} Qd7 {[%clk 00:51:58]}
{[%emt 00:01:24]} 21. Qc5 {[%clk 00:28:54]} {[%emt 00:09:59]} Ne8 {[%clk
00:50:08]} {[%emt 00:02:19]} 22. Re1 {[%clk 00:27:17]} {[%emt 00:02:07]} Nd6
{[%clk 00:50:23]} {[%emt 00:00:15]} 23. h3 {[%clk 00:23:40]} {[%emt 00:04:07]}
Bf5 {[%clk 00:47:43]} {[%emt 00:03:10]} 24. g4 {[%clk 00:23:22]} {[%emt
00:00:48]} Bg6 {[%clk 00:45:42]} {[%emt 00:02:31]} 25. Qe3 {[%clk 00:22:05]}
{[%emt 00:01:47]} Nxc4 {[%clk 00:44:03]} {[%emt 00:02:09]} 26. Qe8+ {[%clk
00:22:29]} {[%emt 00:00:07]} Qxe8 {[%clk 00:44:28]} {[%emt 00:00:05]} 27. Rxe8+
{[%clk 00:22:54]} {[%emt 00:00:04]} Kh7 {[%clk 00:44:56]} {[%emt 00:00:03]} 28.
Bxc7 {[%clk 00:22:22]} {[%emt 00:01:01]} b5 {[%clk 00:45:07]} {[%emt 00:00:19]}
29. Rd8 {[%clk 00:21:13]} {[%emt 00:01:39]} a4 {[%clk 00:43:02]} {[%emt
00:02:36]} 30. d6 {[%clk 00:20:20]} {[%emt 00:01:23]} b4 {[%clk 00:43:25]}
{[%emt 00:00:07]} 31. d7 {[%clk 00:20:07]} {[%emt 00:00:43]} b3 {[%clk
00:43:52]} {[%emt 00:00:04]} 32. axb3 {[%clk 00:19:46]} {[%emt 00:00:51]} axb3
{[%clk 00:44:01]} {[%emt 00:00:21]} 33. Rb8 {[%clk 00:18:46]} {[%emt 00:01:30]}
Ra1+ {[%clk 00:43:10]} {[%emt 00:01:22]} 34. Bf1 {[%clk 00:19:14]} {[%emt
00:00:01]} Nd2 {[%clk 00:41:25]} {[%emt 00:02:14]} 35. d8=Q {[%clk 00:19:32]}
{[%emt 00:00:12]} Rxf1+ {[%clk 00:41:21]} {[%emt 00:00:34]} 36. Kg2 {[%clk
00:19:57]} {[%emt 00:00:05]} Be4+ {[%clk 00:41:30]} {[%emt 00:00:21]} 37. Kg3
{[%clk 00:20:21]} {[%emt 00:00:06]} b2 {[%clk 00:40:26]} {[%emt 00:01:34]} 38.
Qg8+ {[%clk 00:18:02]} {[%emt 00:02:49]} Kg6 {[%clk 00:40:50]} {[%emt
00:00:05]} 39. Rb6+ {[%clk 00:18:05]} {[%emt 00:00:28]} f6 {[%clk 00:41:10]}
{[%emt 00:00:09]} 40. h4 {[%clk 00:17:24]} {[%emt 00:01:11]} Rg1+ {[%clk
00:40:19]} {[%emt 00:01:21]} 41. Kf4 {[%clk 00:17:53]} {[%emt 00:00:01]} Rxg4+
{[%clk 00:39:54]} {[%emt 00:00:55]} 42. Kxg4 {[%clk 00:18:17]} {[%emt
00:00:05]} h5+ {[%clk 00:39:58]} {[%emt 00:00:27]} 43. Kg3 {[%clk 00:17:53]}
{[%emt 00:00:54]} b1=Q {[%clk 00:40:07]} {[%emt 00:00:20]} 44. Qe8+ {[%clk
00:18:17]} {[%emt 00:00:06]} 1-0

[Event "Hull 4NCL GM Norm Tournament"]
[Site "Canham Turner Centre"]
[Date "2022.10.15"]
[Round "6.5"]
[White "Nagy, Gabor"]
[Black "Jackson, James P"]
[Result "1/2-1/2"]
[TimeControl "1hr30 + 30sec inc"]
[WhiteElo "2488"]
[BlackElo "2408"]

1. d4 {[%clk 01:29:59]} {[%emt 00:00:59]} Nf6 {[%clk 01:30:21]} {[%emt
00:00:40]} 2. Nf3 {[%clk 01:30:02]} {[%emt 00:00:26]} g6 {[%clk 01:30:22]}
{[%emt 00:00:30]} 3. Nbd2 {[%clk 01:29:30]} {[%emt 00:01:01]} Bg7 {[%clk
01:26:53]} {[%emt 00:04:00]} 4. e4 {[%clk 01:29:37]} {[%emt 00:00:22]} d6
{[%clk 01:27:19]} {[%emt 00:00:05]} 5. Bb5+ {[%clk 01:29:43]} {[%emt 00:00:24]}
c6 {[%clk 01:26:04]} {[%emt 00:01:46]} 6. Bd3 {[%clk 01:30:01]} {[%emt
00:00:11]} O-O {[%clk 01:25:58]} {[%emt 00:00:37]} 7. O-O {[%clk 01:30:11]}
{[%emt 00:00:18]} c5 {[%clk 01:22:04]} {[%emt 00:04:25]} 8. c3 {[%clk
01:30:20]} {[%emt 00:00:21]} Nc6 {[%clk 01:20:41]} {[%emt 00:01:53]} 9. d5
{[%clk 01:27:19]} {[%emt 00:03:30]} Nb8 {[%clk 01:20:47]} {[%emt 00:00:25]} 10.
h3 {[%clk 01:25:43]} {[%emt 00:02:06]} e6 {[%clk 01:19:16]} {[%emt 00:02:02]}
11. dxe6 {[%clk 01:25:25]} {[%emt 00:00:48]} Bxe6 {[%clk 01:19:14]} {[%emt
00:00:33]} 12. Ng5 {[%clk 01:24:38]} {[%emt 00:01:16]} Bc8 {[%clk 01:18:46]}
{[%emt 00:00:59]} 13. Nc4 {[%clk 01:23:02]} {[%emt 00:02:05]} Nc6 {[%clk
01:13:23]} {[%emt 00:05:54]} 14. Bc2 {[%clk 01:22:28]} {[%emt 00:01:03]} h6
{[%clk 01:11:03]} {[%emt 00:02:50]} 15. Nf3 {[%clk 01:20:27]} {[%emt 00:02:30]}
d5 {[%clk 01:11:21]} {[%emt 00:00:14]} 16. exd5 {[%clk 01:20:35]} {[%emt
00:00:22]} Nxd5 {[%clk 01:04:54]} {[%emt 00:06:57]} 17. Re1 {[%clk 01:19:36]}
{[%emt 00:01:27]} b5 {[%clk 00:59:11]} {[%emt 00:06:14]} 18. Nce5 {[%clk
01:16:13]} {[%emt 00:03:53]} Nxe5 {[%clk 00:56:56]} {[%emt 00:02:45]} 19. Nxe5
{[%clk 01:16:34]} {[%emt 00:00:08]} Re8 {[%clk 00:51:30]} {[%emt 00:05:57]} 20.
Ng4 {[%clk 01:09:21]} {[%emt 00:07:43]} 1/2-1/2

[ePGN "0.1;DGT LiveChess/2.2.5"]

[Event "Hull 4NCL GM Norm Tournament"]
[Site "Canham Turner Centre"]
[Date "2022.10.15"]
[Round "7.1"]
[White "Jackson, James P"]
[Black "Sarakauskas, Gediminas"]
[Result "0-1"]
[TimeControl "1hr30 + 30sec inc"]
[WhiteElo "2408"]
[BlackElo "2395"]

1. e4 {[%clk 01:29:37]} {[%emt 00:01:22]} e5 {[%clk 01:30:56]} {[%emt
00:00:05]} 2. Nf3 {[%clk 01:30:02]} {[%emt 00:00:04]} Nc6 {[%clk 01:31:23]}
{[%emt 00:00:04]} 3. Bc4 {[%clk 01:30:08]} {[%emt 00:00:24]} Bc5 {[%clk
01:31:47]} {[%emt 00:00:06]} 4. c3 {[%clk 01:30:34]} {[%emt 00:00:05]} Nf6
{[%clk 01:32:12]} {[%emt 00:00:04]} 5. d4 {[%clk 01:30:59]} {[%emt 00:00:05]}
exd4 {[%clk 01:32:30]} {[%emt 00:00:12]} 6. e5 {[%clk 01:31:24]} {[%emt
00:00:05]} d5 {[%clk 01:32:39]} {[%emt 00:00:21]} 7. Bb5 {[%clk 01:31:49]}
{[%emt 00:00:05]} Ne4 {[%clk 01:32:29]} {[%emt 00:00:40]} 8. cxd4 {[%clk
01:32:13]} {[%emt 00:00:06]} Bb6 {[%clk 01:32:50]} {[%emt 00:00:09]} 9. Nc3
{[%clk 01:32:27]} {[%emt 00:00:16]} O-O {[%clk 01:32:21]} {[%emt 00:00:59]} 10.
Be3 {[%clk 01:32:43]} {[%emt 00:00:13]} Ne7 {[%clk 01:21:12]} {[%emt 00:11:39]}
11. Bd3 {[%clk 01:29:50]} {[%emt 00:03:23]} Nxc3 {[%clk 01:18:37]} {[%emt
00:03:05]} 12. bxc3 {[%clk 01:30:15]} {[%emt 00:00:06]} Bf5 {[%clk 01:18:57]}
{[%emt 00:00:09]} 13. O-O {[%clk 01:29:50]} {[%emt 00:00:54]} Qd7 {[%clk
01:04:54]} {[%emt 00:14:32]} 14. Nh4 {[%clk 01:19:15]} {[%emt 00:11:06]} Bxd3
{[%clk 01:05:15]} {[%emt 00:00:09]} 15. Qxd3 {[%clk 01:19:40]} {[%emt
00:00:05]} Rac8 {[%clk 00:57:48]} {[%emt 00:07:57]} 16. Bg5 {[%clk 01:17:35]}
{[%emt 00:02:34]} f6 {[%clk 00:51:56]} {[%emt 00:06:22]} 17. exf6 {[%clk
01:10:41]} {[%emt 00:07:25]} gxf6 {[%clk 00:52:24]} {[%emt 00:00:01]} 18. Bh6
{[%clk 01:10:20]} {[%emt 00:00:52]} Rf7 {[%clk 00:52:53]} {[%emt 00:00:01]} 19.
Qf3 {[%clk 00:55:50]} {[%emt 00:14:59]} c5 {[%clk 00:52:04]} {[%emt 00:01:19]}
20. Rae1 {[%clk 00:36:13]} {[%emt 00:20:07]} cxd4 {[%clk 00:52:06]} {[%emt
00:00:29]} 21. cxd4 {[%clk 00:36:38]} {[%emt 00:00:05]} Bxd4 {[%clk 00:40:22]}
{[%emt 00:12:14]} 22. Rxe7 {[%clk 00:34:52]} {[%emt 00:02:16]} Rxe7 {[%clk
00:40:51]} {[%emt 00:00:02]} 23. Nf5 {[%clk 00:35:11]} {[%emt 00:00:11]} Re4
{[%clk 00:40:23]} {[%emt 00:00:57]} 24. Qg3+ {[%clk 00:34:26]} {[%emt
00:01:16]} Kf7 {[%clk 00:40:36]} {[%emt 00:00:17]} 25. Nd6+ {[%clk 00:33:39]}
{[%emt 00:01:18]} Ke6 {[%clk 00:37:47]} {[%emt 00:03:17]} 26. Nxc8 {[%clk
00:31:32]} {[%emt 00:02:39]} Qxc8 {[%clk 00:38:15]} {[%emt 00:00:02]} 27. Bf4
{[%clk 00:31:21]} {[%emt 00:00:41]} Kf7 {[%clk 00:36:41]} {[%emt 00:02:02]} 28.
Bh6 {[%clk 00:21:26]} {[%emt 00:10:26]} Qg4 {[%clk 00:19:57]} {[%emt 00:17:13]}
29. Qc7+ {[%clk 00:18:12]} {[%emt 00:03:45]} Re7 {[%clk 00:19:57]} {[%emt
00:00:30]} 30. Qa5 {[%clk 00:18:33]} {[%emt 00:00:10]} Qf5 {[%clk 00:16:38]}
{[%emt 00:03:48]} 31. Qd2 {[%clk 00:18:40]} {[%emt 00:00:24]} Bb6 {[%clk
00:16:22]} {[%emt 00:00:44]} 32. Bf4 {[%clk 00:18:34]} {[%emt 00:00:37]} d4
{[%clk 00:14:56]} {[%emt 00:01:56]} 33. Bd6 {[%clk 00:18:21]} {[%emt 00:00:44]}
Re6 {[%clk 00:14:53]} {[%emt 00:00:31]} 34. Bb4 {[%clk 00:18:32]} {[%emt
00:00:19]} a5 {[%clk 00:13:51]} {[%emt 00:01:33]} 35. Ba3 {[%clk 00:18:58]}
{[%emt 00:00:05]} d3 {[%clk 00:14:13]} {[%emt 00:00:07]} 36. Qc3 {[%clk
00:19:05]} {[%emt 00:00:23]} Kg7 {[%clk 00:11:13]} {[%emt 00:03:29]} 37. Qb2
{[%clk 00:17:19]} {[%emt 00:02:17]} Qe5 {[%clk 00:10:49]} {[%emt 00:00:52]} 38.
Qd2 {[%clk 00:10:17]} {[%emt 00:07:34]} Qe2 {[%clk 00:11:03]} {[%emt 00:00:16]}
39. Bc1 {[%clk 00:10:43]} {[%emt 00:00:05]} Qxd2 {[%clk 00:11:21]} {[%emt
00:00:12]} 40. Bxd2 {[%clk 00:11:08]} {[%emt 00:00:05]} Re2 {[%clk 00:11:45]}
{[%emt 00:00:05]} 41. Rd1 {[%clk 00:11:35]} {[%emt 00:00:03]} Rxf2 {[%clk
00:09:09]} {[%emt 00:03:06]} 42. Kh1 {[%clk 00:11:58]} {[%emt 00:00:07]} Bd4
{[%clk 00:08:07]} {[%emt 00:01:30]} 43. g3 {[%clk 00:12:13]} {[%emt 00:00:17]}
b6 {[%clk 00:07:38]} {[%emt 00:00:58]} 44. a4 {[%clk 00:12:26]} {[%emt
00:00:17]} Kf7 {[%clk 00:06:55]} {[%emt 00:01:12]} 45. Bf4 {[%clk 00:11:12]}
{[%emt 00:01:45]} Ra2 {[%clk 00:07:21]} {[%emt 00:00:04]} 46. Rxd3 {[%clk
00:11:36]} {[%emt 00:00:06]} Rxa4 {[%clk 00:07:50]} {[%emt 00:00:01]} 47. Kg2
{[%clk 00:11:58]} {[%emt 00:00:08]} Ke6 {[%clk 00:07:22]} {[%emt 00:00:58]} 48.
Kf3 {[%clk 00:12:22]} {[%emt 00:00:06]} Rc4 {[%clk 00:06:47]} {[%emt 00:01:05]}
49. Kg4 {[%clk 00:12:32]} {[%emt 00:00:21]} b5 {[%clk 00:06:25]} {[%emt
00:00:51]} 50. Kh5 {[%clk 00:10:10]} {[%emt 00:02:52]} b4 {[%clk 00:06:50]}
{[%emt 00:00:05]} 51. Kh6 {[%clk 00:10:25]} {[%emt 00:00:15]} a4 {[%clk
00:07:16]} {[%emt 00:00:04]} 52. Bc1 {[%clk 00:10:01]} {[%emt 00:00:53]} Rxc1
{[%clk 00:07:07]} {[%emt 00:00:39]} 53. Rxd4 {[%clk 00:10:27]} {[%emt
00:00:05]} Rb1 {[%clk 00:07:26]} {[%emt 00:00:10]} 0-1

[Event "Hull 4NCL GM Norm Tournament"]
[Site "Canham Turner Centre"]
[Date "2022.10.15"]
[Round "7.2"]
[White "Czopor, Maciej"]
[Black "Nagy, Gabor"]
[Result "1/2-1/2"]
[TimeControl "1hr30 + 30sec inc"]
[WhiteElo "2424"]
[BlackElo "2488"]

1. e4 {[%clk 01:30:26]} {[%emt 00:00:33]} e5 {[%clk 01:30:44]} {[%emt
00:00:16]} 2. Nf3 {[%clk 01:30:50]} {[%emt 00:00:06]} Nc6 {[%clk 01:30:55]}
{[%emt 00:00:19]} 3. d4 {[%clk 01:30:47]} {[%emt 00:00:34]} exd4 {[%clk
01:30:46]} {[%emt 00:00:38]} 4. Nxd4 {[%clk 01:31:12]} {[%emt 00:00:05]} Bc5
{[%clk 01:29:42]} {[%emt 00:01:34]} 5. Nb3 {[%clk 01:31:18]} {[%emt 00:00:25]}
Bb4+ {[%clk 01:28:57]} {[%emt 00:01:14]} 6. c3 {[%clk 01:26:33]} {[%emt
00:05:15]} Be7 {[%clk 01:28:31]} {[%emt 00:00:56]} 7. Bc4 {[%clk 01:26:27]}
{[%emt 00:00:36]} Nf6 {[%clk 01:27:58]} {[%emt 00:01:02]} 8. O-O {[%clk
01:26:38]} {[%emt 00:00:19]} O-O {[%clk 01:24:50]} {[%emt 00:03:38]} 9. Re1
{[%clk 01:26:35]} {[%emt 00:00:33]} d6 {[%clk 01:24:57]} {[%emt 00:00:23]} 10.
Bf1 {[%clk 01:17:43]} {[%emt 00:09:23]} d5 {[%clk 01:22:10]} {[%emt 00:03:16]}
1/2-1/2